Workbook

Sheet Übersetzungsanalytik
C5: Übersetzungsanalytik | J5: Primärübersetzung
K6: KTM | L6: KTM 1:# | M6: Husaberg | N6: Husaberg 1:#
C7: gelbes Feld | D7: = Eingabe | J7: Primär | K7: 30:81 | L7: =30/81 -> 0.3703703704 | M7: 29:78 | N7: =29/78 -> 0.3717948718
J8: 1. Gang | K8: 14:35 | L8: =14/35 -> 0.4 | M8: 13:34 | N8: =13/34 -> 0.3823529412
J9: 2. Gang | K9: 15:24 | L9: =15/24 -> 0.625 | M9: 17:30 | N9: =17/30 -> 0.5666666667
C10: Radumfang | F10: Sekundärübersetzung | J10: 3. Gang | K10: 18:21 | L10: =18/21 -> 0.8571428571 | M10: 20:27 | N10: =20/27 -> 0.7407407407
C11: 17"-SM | D11: 1900 | F11: Ritzel vorne | G11: 16 | J11: 4. Gang | K11: 20:19 | L11: =20/19 -> 1.052631579 | M11: 23:24 | N11: =23/24 -> 0.9583333333
C12: 21"-Cross | D12: 2215 | F12: Ritzel hinten | G12: 45 | J12: 5. Gang | K12: 22:18 | L12: =22/18 -> 1.222222222 | M12: 25:22 | N12: =25/22 -> 1.136363636
C13: Eingabe-Umf. | D13: 1900 | F13: Verhältnis | G13: =G11/G12 -> 0.3555555556 | J13: 6. Gang | M13: 27:20 | N13: =27/20 -> 1.35
C16: Ergebnisse:
C18: KTM | J18: Husaberg
C19: rpm | D19: 1. Gang | E19: 2. Gang | F19: 3. Gang | G19: 4. Gang | H19: 5. Gang | J19: rpm | K19: 1. Gang | L19: 2. Gang | M19: 3. Gang | N19: 4. Gang | O19: 5. Gang | P19: 6. Gang
C20: 1000 | D20: =$C20/60*$D$13/1000*$L$7*$L$8*$G$13*3.6 -> 6.004938272 | E20: =$C20/60*$D$13/1000*$L$7*$L$9*$G$13*3.6 -> 9.382716049 | F20: =$C20/60*$D$13/1000*$L$7*$L$10*$G$13*3.6 -> 12.86772487 | G20: =$C20/60*$D$13/1000*$L$7*$L$11*$G$13*3.6 -> 15.80246914 | H20: =$C20/60*$D$13/1000*$L$7*$L$12*$G$13*3.6 -> 18.3484225 | J20: 1000 | K20: =$J20/60*$D$13/1000*$N$7*$N$8*$G$13*3.6 -> 5.762091503 | L20: =$J20/60*$D$13/1000*$N$7*$N$9*$G$13*3.6 -> 8.5397151 | M20: =$J20/60*$D$13/1000*$N$7*$N$10*$G$13*3.6 -> 11.16302627 | N20: =$J20/60*$D$13/1000*$N$7*$N$11*$G$13*3.6 -> 14.44216524 | O20: =$J20/60*$D$13/1000*$N$7*$N$12*$G$13*3.6 -> 17.12509713 | P20: =$J20/60*$D$13/1000*$N$7*$N$13*$G$13*3.6 -> 20.34461538
C21: 2000 | D21: =$C21/60*$D$13/1000*$L$7*$L$8*$G$13*3.6 -> 12.00987654 | E21: =$C21/60*$D$13/1000*$L$7*$L$9*$G$13*3.6 -> 18.7654321 | F21: =$C21/60*$D$13/1000*$L$7*$L$10*$G$13*3.6 -> 25.73544974 | G21: =$C21/60*$D$13/1000*$L$7*$L$11*$G$13*3.6 -> 31.60493827 | H21: =$C21/60*$D$13/1000*$L$7*$L$12*$G$13*3.6 -> 36.69684499 | J21: 2000 | K21: =$J21/60*$D$13/1000*$N$7*$N$8*$G$13*3.6 -> 11.52418301 | L21: =$J21/60*$D$13/1000*$N$7*$N$9*$G$13*3.6 -> 17.0794302 | M21: =$J21/60*$D$13/1000*$N$7*$N$10*$G$13*3.6 -> 22.32605255 | N21: =$J21/60*$D$13/1000*$N$7*$N$11*$G$13*3.6 -> 28.88433048 | O21: =$J21/60*$D$13/1000*$N$7*$N$12*$G$13*3.6 -> 34.25019425 | P21: =$J21/60*$D$13/1000*$N$7*$N$13*$G$13*3.6 -> 40.68923077
C22: 3000 | D22: =$C22/60*$D$13/1000*$L$7*$L$8*$G$13*3.6 -> 18.01481481 | E22: =$C22/60*$D$13/1000*$L$7*$L$9*$G$13*3.6 -> 28.14814815 | F22: =$C22/60*$D$13/1000*$L$7*$L$10*$G$13*3.6 -> 38.6031746 | G22: =$C22/60*$D$13/1000*$L$7*$L$11*$G$13*3.6 -> 47.40740741 | H22: =$C22/60*$D$13/1000*$L$7*$L$12*$G$13*3.6 -> 55.04526749 | J22: 3000 | K22: =$J22/60*$D$13/1000*$N$7*$N$8*$G$13*3.6 -> 17.28627451 | L22: =$J22/60*$D$13/1000*$N$7*$N$9*$G$13*3.6 -> 25.6191453 | M22: =$J22/60*$D$13/1000*$N$7*$N$10*$G$13*3.6 -> 33.48907882 | N22: =$J22/60*$D$13/1000*$N$7*$N$11*$G$13*3.6 -> 43.32649573 | O22: =$J22/60*$D$13/1000*$N$7*$N$12*$G$13*3.6 -> 51.37529138 | P22: =$J22/60*$D$13/1000*$N$7*$N$13*$G$13*3.6 -> 61.03384615
C23: 4000 | D23: =$C23/60*$D$13/1000*$L$7*$L$8*$G$13*3.6 -> 24.01975309 | E23: =$C23/60*$D$13/1000*$L$7*$L$9*$G$13*3.6 -> 37.5308642 | F23: =$C23/60*$D$13/1000*$L$7*$L$10*$G$13*3.6 -> 51.47089947 | G23: =$C23/60*$D$13/1000*$L$7*$L$11*$G$13*3.6 -> 63.20987654 | H23: =$C23/60*$D$13/1000*$L$7*$L$12*$G$13*3.6 -> 73.39368999 | J23: 4000 | K23: =$J23/60*$D$13/1000*$N$7*$N$8*$G$13*3.6 -> 23.04836601 | L23: =$J23/60*$D$13/1000*$N$7*$N$9*$G$13*3.6 -> 34.1588604 | M23: =$J23/60*$D$13/1000*$N$7*$N$10*$G$13*3.6 -> 44.6521051 | N23: =$J23/60*$D$13/1000*$N$7*$N$11*$G$13*3.6 -> 57.76866097 | O23: =$J23/60*$D$13/1000*$N$7*$N$12*$G$13*3.6 -> 68.5003885 | P23: =$J23/60*$D$13/1000*$N$7*$N$13*$G$13*3.6 -> 81.37846154
C24: 5000 | D24: =$C24/60*$D$13/1000*$L$7*$L$8*$G$13*3.6 -> 30.02469136 | E24: =$C24/60*$D$13/1000*$L$7*$L$9*$G$13*3.6 -> 46.91358025 | F24: =$C24/60*$D$13/1000*$L$7*$L$10*$G$13*3.6 -> 64.33862434 | G24: =$C24/60*$D$13/1000*$L$7*$L$11*$G$13*3.6 -> 79.01234568 | H24: =$C24/60*$D$13/1000*$L$7*$L$12*$G$13*3.6 -> 91.74211248 | J24: 5000 | K24: =$J24/60*$D$13/1000*$N$7*$N$8*$G$13*3.6 -> 28.81045752 | L24: =$J24/60*$D$13/1000*$N$7*$N$9*$G$13*3.6 -> 42.6985755 | M24: =$J24/60*$D$13/1000*$N$7*$N$10*$G$13*3.6 -> 55.81513137 | N24: =$J24/60*$D$13/1000*$N$7*$N$11*$G$13*3.6 -> 72.21082621 | O24: =$J24/60*$D$13/1000*$N$7*$N$12*$G$13*3.6 -> 85.62548563 | P24: =$J24/60*$D$13/1000*$N$7*$N$13*$G$13*3.6 -> 101.7230769
C25: 6000 | D25: =$C25/60*$D$13/1000*$L$7*$L$8*$G$13*3.6 -> 36.02962963 | E25: =$C25/60*$D$13/1000*$L$7*$L$9*$G$13*3.6 -> 56.2962963 | F25: =$C25/60*$D$13/1000*$L$7*$L$10*$G$13*3.6 -> 77.20634921 | G25: =$C25/60*$D$13/1000*$L$7*$L$11*$G$13*3.6 -> 94.81481481 | H25: =$C25/60*$D$13/1000*$L$7*$L$12*$G$13*3.6 -> 110.090535 | J25: 6000 | K25: =$J25/60*$D$13/1000*$N$7*$N$8*$G$13*3.6 -> 34.57254902 | L25: =$J25/60*$D$13/1000*$N$7*$N$9*$G$13*3.6 -> 51.2382906 | M25: =$J25/60*$D$13/1000*$N$7*$N$10*$G$13*3.6 -> 66.97815764 | N25: =$J25/60*$D$13/1000*$N$7*$N$11*$G$13*3.6 -> 86.65299145 | O25: =$J25/60*$D$13/1000*$N$7*$N$12*$G$13*3.6 -> 102.7505828 | P25: =$J25/60*$D$13/1000*$N$7*$N$13*$G$13*3.6 -> 122.0676923
C26: 7000 | D26: =$C26/60*$D$13/1000*$L$7*$L$8*$G$13*3.6 -> 42.0345679 | E26: =$C26/60*$D$13/1000*$L$7*$L$9*$G$13*3.6 -> 65.67901235 | F26: =$C26/60*$D$13/1000*$L$7*$L$10*$G$13*3.6 -> 90.07407407 | G26: =$C26/60*$D$13/1000*$L$7*$L$11*$G$13*3.6 -> 110.617284 | H26: =$C26/60*$D$13/1000*$L$7*$L$12*$G$13*3.6 -> 128.4389575 | J26: 7000 | K26: =$J26/60*$D$13/1000*$N$7*$N$8*$G$13*3.6 -> 40.33464052 | L26: =$J26/60*$D$13/1000*$N$7*$N$9*$G$13*3.6 -> 59.7780057 | M26: =$J26/60*$D$13/1000*$N$7*$N$10*$G$13*3.6 -> 78.14118392 | N26: =$J26/60*$D$13/1000*$N$7*$N$11*$G$13*3.6 -> 101.0951567 | O26: =$J26/60*$D$13/1000*$N$7*$N$12*$G$13*3.6 -> 119.8756799 | P26: =$J26/60*$D$13/1000*$N$7*$N$13*$G$13*3.6 -> 142.4123077
C27: 8000 | D27: =$C27/60*$D$13/1000*$L$7*$L$8*$G$13*3.6 -> 48.03950617 | E27: =$C27/60*$D$13/1000*$L$7*$L$9*$G$13*3.6 -> 75.0617284 | F27: =$C27/60*$D$13/1000*$L$7*$L$10*$G$13*3.6 -> 102.9417989 | G27: =$C27/60*$D$13/1000*$L$7*$L$11*$G$13*3.6 -> 126.4197531 | H27: =$C27/60*$D$13/1000*$L$7*$L$12*$G$13*3.6 -> 146.78738 | J27: 8000 | K27: =$J27/60*$D$13/1000*$N$7*$N$8*$G$13*3.6 -> 46.09673203 | L27: =$J27/60*$D$13/1000*$N$7*$N$9*$G$13*3.6 -> 68.3177208 | M27: =$J27/60*$D$13/1000*$N$7*$N$10*$G$13*3.6 -> 89.30421019 | N27: =$J27/60*$D$13/1000*$N$7*$N$11*$G$13*3.6 -> 115.5373219 | O27: =$J27/60*$D$13/1000*$N$7*$N$12*$G$13*3.6 -> 137.000777 | P27: =$J27/60*$D$13/1000*$N$7*$N$13*$G$13*3.6 -> 162.7569231
C28: 9000 | D28: =$C28/60*$D$13/1000*$L$7*$L$8*$G$13*3.6 -> 54.04444444 | E28: =$C28/60*$D$13/1000*$L$7*$L$9*$G$13*3.6 -> 84.44444444 | F28: =$C28/60*$D$13/1000*$L$7*$L$10*$G$13*3.6 -> 115.8095238 | G28: =$C28/60*$D$13/1000*$L$7*$L$11*$G$13*3.6 -> 142.2222222 | H28: =$C28/60*$D$13/1000*$L$7*$L$12*$G$13*3.6 -> 165.1358025 | J28: 9000 | K28: =$J28/60*$D$13/1000*$N$7*$N$8*$G$13*3.6 -> 51.85882353 | L28: =$J28/60*$D$13/1000*$N$7*$N$9*$G$13*3.6 -> 76.8574359 | M28: =$J28/60*$D$13/1000*$N$7*$N$10*$G$13*3.6 -> 100.4672365 | N28: =$J28/60*$D$13/1000*$N$7*$N$11*$G$13*3.6 -> 129.9794872 | O28: =$J28/60*$D$13/1000*$N$7*$N$12*$G$13*3.6 -> 154.1258741 | P28: =$J28/60*$D$13/1000*$N$7*$N$13*$G$13*3.6 -> 183.1015385
